Cogmind - Beta 13 @@@ ROGUE MODE // 2024.05.04 @ 19:25:19 Player: Silfurdreki Result: Destroyed by G-47 Trooper with Particle Gun Performance ------------- Evolutions (2) 1000 Regions Visited (3) 600 Robots Destroyed (20) 100 Value Destroyed (540) 540 Prototype IDs (10) 200 Alien Tech Used (0) 0 Bonus (55) 55 TOTAL SCORE: 2495 Bonus ------- High Alert Combat Kills 55 Cogmind --------- Core Integrity 0/550 Matter 37/300 Energy 112/125 System Corruption 0% Temperature Hot (258) Movement Treading (170) Location -8/Materials Parts ------- > --- POWER (1) -------- Light Ion Engine > --- PROPULSION (4) --- Armored Treads Armored Treads Armored Treads Armored Treads > --- UTILITY (4) ------ (None) > --- WEAPON (2) ------- Medium Laser Assault Cannon > --- INVENTORY (5) ---- Medium Laser Peak State ------------ > --- POWER ------------ Light Ion Engine > --- PROPULSION ------- Armored Treads Armored Treads Armored Treads Armored Treads > --- UTILITY ---------- (None) > --- WEAPON ----------- Medium Laser Assault Cannon > --- INVENTORY -------- Medium Laser [Rating: 17] Favorites ----------- Power Ion Engine Engine Ion Engine Power Core Nuclear Core Propulsion Aluminum Leg Treads Armored Treads Leg Aluminum Leg Utility Small Storage Unit Device Seismic Detector Storage Small Storage Unit Protection Light Armor Plating Weapon Medium Laser Energy Gun Medium Laser Ballistic Gun Subdweller Machine Gun Ballistic Cannon Battle Cannon Launcher Subdweller Shrapnel Launcher Build | -11 -10 -10 -8 ------- Run | Yrd Mat Sub Mat Slots Evolved 4 | . . . 4 Power . | . . . . Propulsion 2 | . . . 2 Utility 2 | . . . 2 Weapon . | . . . . Parts Attached 27 | 8 1 7 11 Power 4 | 1 . 1 2 Engine 3 | 1 . 1 1 Core 1 | . . . 1 Reactor . | . . . . Propulsion 8 | 2 . 2 4 Treads 4 | . . . 4 Leg 4 | 2 . 2 . Wheel . | . . . . Hover . | . . . . Flight . | . . . . Utility 5 | 2 . 2 1 Device 1 | 1 . . . Storage 1 | 1 . . . Processor . | . . . . Hackware . | . . . . Protection 3 | . . 2 1 Artifact . | . . . . Weapon 10 | 3 1 2 4 Energy Gun 5 | 3 1 . 1 Energy Cannon . | . . . . Ballistic Gun 1 | . . 1 . Ballistic Cannon 3 | . . 1 2 Launcher 1 | . . . 1 Special Weapon . | . . . . Impact Weapon . | . . . . Slashing Weapon . | . . . . Piercing Weapon . | . . . . Special Melee Weapon . | . . . . Unidentified Prototypes . | . . . . Parts Lost 13 | . . 4 9 Power 2 | . . 1 1 Propulsion 3 | . . 1 2 Utility 3 | . . 1 2 Weapon 5 | . . 1 4 Highest Loss Streak 6 | . . 4 6 To Critical Strikes . | . . . . Average Slot Usage (%) 86 | . 100 89 51 Engine 11 | . 14 13 . Core 1 | . . . 7 Leg 24 | . 28 27 12 Device 6 | . 14 2 . Storage 8 | . 14 8 . Protection 6 | . . 10 11 Energy Gun 14 | . 28 8 . Ballistic Gun 4 | . . 8 5 Ballistic Cannon 5 | . . 8 8 Naked Turns 12 | . . . 12 Heaviest Build 35 | 14 16 28 35 Greatest Support 80 | 20 20 20 80 Greatest Overweight (x) 6 | 1 . 1 6 Average Overweight (x) . | . . . . Largest Inventory Capacity 8 | 8 8 8 5 Average Capacity 6 | 7 8 6 5 Most Carried 8 | 2 7 8 5 Average Carried 4 | 1 4 5 3 Final Capacity 8 | 8 8 5 5 Final Carried 7 | 2 7 4 1 Class Distribution -------------------- 100% | Mutant Dominant Class ---------------- Mutant | -10/Materials Mutant | -10/Subcaves Mutant | -8/Materials Resources | -11 -10 -10 -8 ----------- Run | Yrd Mat Sub Mat Matter Collected 367 | 280 10 77 . Remotely . | . . . . Salvage Created 456 | 51 130 141 134 Parts 32 | 4 11 7 10 Haulers Intercepted . | . . . . Recyclers Shooed . | . . . . Parts Field Recycled . | . . . . Retrieved Matter . | . . . . Parts Self-Destructed 20 | . . 20 . Prevented . | . . . . Kills | -11 -10 -10 -8 ------- Run | Yrd Mat Sub Mat Combat Hostiles Destroyed 14 | . 5 4 5 Guns 8 | . 5 3 . Cannons 4 | . . 1 3 AOE 2 | . . . 2 Classes Destroyed 6 | 1 2 2 1 Builder 2 | . . . 2 Tunneler 2 | 2 . . . Turret 2 | . . 2 . Swarmer 6 | . 3 3 . Grunt 7 | . 2 . 5 Subdweller 1 | . . 1 . Best Kill Streak 6 | 1 3 3 6 Combat Bots Only 4 | . 3 3 4 Max Kills in Single Turn 2 | 1 1 1 2 Gunslinging . | . . . . Exploded 1 | . . . 1 Melee . | . . . . Uniques/NPCs Destroyed . | . . . . Combat | -11 -10 -10 -8 -------- Run | Yrd Mat Sub Mat Hostile Shots Fired 356 | . 19 131 206 Missed 126 | . 7 58 61 Damage Taken 2589 | . 146 541 1902 Core 709 | . 52 104 553 Absorbed by Shields . | . . . . Core Remaining (%) 68 | 100 . 37 . Volleys Fired 53 | 6 12 15 20 Largest 2 | 2 2 2 2 Hottest 115 | 90 90 115 94 Shots Fired 98 | 12 24 29 33 Gun 73 | 12 24 28 9 Cannon 20 | . . 1 19 Launcher 5 | . . . 5 Special . | . . . . Kinetic 27 | . . 2 25 Thermal 71 | 12 24 27 8 Explosive . | . . . . Electromagnetic . | . . . . Robot Hit Streak 12 | 4 7 5 12 Robot Miss Streak 4 | 3 2 2 4 Penetration Max . | . . . . Secondary Targets 2 | . . 2 . Max Gunslinging Chain 1 | . . 1 . Shots Hit Robots 62 | 7 16 17 22 Core Hits 36 | 2 8 7 19 Critical Kills . | . . . . Critical Parts Destroyed . | . . . . Critical Strikes 5 | 1 1 3 . Burn 4 | 1 1 2 . Blast 1 | . . 1 . Melee Attacks . | . . . . Impact . | . . . . Slashing . | . . . . Piercing . | . . . . Sneak Attacks . | . . . . Combat Hostiles . | . . . . Follow-up Attacks . | . . . . Damage Inflicted 1573 | 95 192 255 1031 Guns 591 | 95 192 230 74 Cannons 357 | . . 25 332 Explosions 616 | . . . 616 Melee . | . . . . Ramming 9 | . . . 9 Kinetic 995 | . . 47 948 Thermal 569 | 95 192 208 74 Explosive . | . . . . Electromagnetic . | . . . . Impact . | . . . . Slashing . | . . . . Piercing . | . . . . Highest Corruption . | . . . . Average Corruption . | . . . . Corruption Purged . | . . . . Corruption Blocked . | . . . . Overload Shots . | . . . . Overflow Damage 50 | . . . 50 Projectiles . | . . . . Explosions 50 | . . . 50 Melee . | . . . . Knockbacks 4 | . . . 4 Impact . | . . . . Kinetic 3 | . . . 3 Secondary 1 | . . . 1 Self-Inflicted Damage 48 | . . . 48 Shots 1 | . . . 1 Rammed . | . . . . Targets Rammed 2 | . . . 2 Kicked 2 | . . . 2 Crushed . | . . . . Highest Temperature 234 | 90 234 96 231 Average Temperature 69 | 48 86 40 74 Received Heat Transfer 1278 | . 54 324 900 Siege Activations . | . . . . Robots Corrupted . | . . . . Combat Hostiles . | . . . . Parts Fried . | . . . . Impact Corruptions . | . . . . Robots Melted . | . . . . Combat Hostiles . | . . . . Parts Melted 4 | 3 1 . . Heat Transferred 1817 | 322 570 703 222 Parts Sabotaged . | . . . . Parts Stolen . | . . . . Parts Stripped . | . . . . Power Chain Reactions . | . . . . Alert | -11 -10 -10 -8 ------- Run | Yrd Mat Sub Mat Peak Influence 666 | 10 126 . 666 Initial 481 | . 6 . 481 Average 161 | 3 20 . 518 Maximum Alert Level 2 | . . . 2 Low Security (%) 71 | 100 100 . . Level 1 . | . . . . Level 2 28 | . . . 100 Level 3 . | . . . . Level 4 . | . . . . Level 5 . | . . . . High Security . | . . . . Max Security . | . . . . Squads Dispatched 4 | . 1 . 3 Investigation 1 | . . . 1 Extermination . | . . . . Reinforcement 2 | . 1 . 1 Assault . | . . . . Garrison 1 | . . . 1 Intercept . | . . . . Searches Triggered . | . . . . Construction Impeded 1 | . . . 1 Haulers Reinforced . | . . . . Active Scanning Responses . | . . . . Cargo Convoy Interrupts . | . . . . Stealth | -11 -10 -10 -8 --------- Run | Yrd Mat Sub Mat Distress Signals 1 | . . . 1 Communications Jammed . | . . . . Distress Signals . | . . . . Times Spotted 98 | . 7 73 18 Peak Tracking Total 8 | . 3 6 8 Tactical Retreats 6 | . . 4 2 Traps | -11 -10 -10 -8 ------- Run | Yrd Mat Sub Mat Traps Triggered . | . . . . Indirectly . | . . . . Trap Hack Attempts . | . . . . Triggered . | . . . . Disarmed . | . . . . Reprogrammed . | . . . . Reused . | . . . . Traps Extracted . | . . . . Installed . | . . . . Triggered . | . . . . Machines | -11 -10 -10 -8 ---------- Run | Yrd Mat Sub Mat Machines Disabled 6 | . . 2 4 Max in Single Turn 3 | . . 1 3 Machines Repaired . | . . . . Machines Dismantled . | . . . . Machines Sabotaged . | . . . . Overloaded Fab Kills . | . . . . Hacking | -11 -10 -10 -8 --------- Run | Yrd Mat Sub Mat Machines Accessed 3 | . . 1 2 Terminals 2 | . . . 2 Fabricators . | . . . . Repair Stations . | . . . . Recycling Units . | . . . . Scanalyzers . | . . . . Garrison Access . | . . . . Total Hacks 14 | . . 9 5 Successful 10 | . . 9 1 Failed 4 | . . . 4 Catastrophic . | . . . . Database Lockouts . | . . . . Manual 5 | . . . 5 Terminals 5 | . . . 5 Fabricators . | . . . . Repair Stations . | . . . . Recycling Units . | . . . . Scanalyzers . | . . . . Garrison Access . | . . . . Terminal Hacks 9 | . . 9 . Record 8 | . . 8 . Derelict Proto ID Bank 1 | . . 1 . Fabricator Hacks . | . . . . Repair Station Hacks . | . . . . Recycling Unit Hacks . | . . . . Scanalyzer . | . . . . Garrison Access Hacks . | . . . . Unauthorized Hacks 1 | . . . 1 Terminals 1 | . . . 1 Botnet 1 | . . . 1 Fabricators . | . . . . Repair Stations . | . . . . Recycling Units . | . . . . Scanalyzers . | . . . . Garrison Access . | . . . . Data Cores Recovered . | . . . . Used . | . . . . Hacking Detections 2 | . . . 2 Full Trace Events 1 | . . . 1 Feedback Events . | . . . . Feedback Blocked . | . . . . Robot Schematics Acquired . | . . . . Robots Built . | . . . . Authchips . | . . . . Time . | . . . . Total Robot Build Rating . | . . . . Part Schematics Acquired . | . . . . Parts Built . | . . . . Authchips . | . . . . Time . | . . . . Total Part Build Rating . | . . . . Parts Repaired . | . . . . Time . | . . . . Parts Recycled . | . . . . Recycled Matter . | . . . . Retrieved Matter . | . . . . Retrieved Components . | . . . . Parts Scanalyzed . | . . . . Part Schematics Acquired . | . . . . Parts Damaged . | . . . . Bothacking | -11 -10 -10 -8 ------------ Run | Yrd Mat Sub Mat Used RIF Installer . | . . . . Robots Hacked . | . . . . Non-combat . | . . . . Combat . | . . . . Robot Hacks Applied . | . . . . Relay Couplers Released . | . . . . Fabnet Peak Effective % . | . . . . Robots Rewired . | . . . . Allies Hacked . | . . . . Hacks Repelled . | . . . . Allies | -11 -10 -10 -8 -------- Run | Yrd Mat Sub Mat Total Allies . | . . . . Largest Group . | . . . . Highest-Rated Group . | . . . . Highest-Rated Ally . | . . . . Total Orders . | . . . . Ally Attacks . | . . . . Total Damage . | . . . . Kills . | . . . . Allies Corrupted . | . . . . Allies Melted . | . . . . Intel | -11 -10 -10 -8 ------- Run | Yrd Mat Sub Mat Robot Analysis Total . | . . . . Derelict Logs Recovered 2 | . . 2 . Drone Launches . | . . . . Drone Recoveries . | . . . . Exploration | -11 -10 -10 -8 ------------- Run | Yrd Mat Sub Mat Turns Passed 1721 | 139 656 604 322 Spaces Moved 791 | 85 198 367 141 Core 35 | 5 . . 30 Treads 8 | . . . 8 Legs 748 | 80 198 367 103 Wheels . | . . . . Hover . | . . . . Flight . | . . . . Fastest Speed 50 | 50 120 120 50 Average Speed 141 | 126 120 144 170 Slowest Speed 350 | 190 120 190 350 Overloaded Moves . | . . . . Propulsion Burnouts . | . . . . Robots Hopped . | . . . . Cave-ins Triggered . | . . . . Exploration Rate (%) 18 | 5 24 29 16 Regions Visited 3 Branch Regions 1 Pre-discovered Areas . | . . . . Known Exits Taken . | . . . . Unknown Exits Taken 3 | 1 1 1 . Scrap Searched 2 | . . 2 . Spaces Dug . | . . . . Terrain Destroyed 33 | . . . 33 Melee . | . . . . Projectile 4 | . . . 4 AOE 29 | . . . 29 Terrain Rammed . | . . . . Walls Destroyed . | . . . . Machines Disabled . | . . . . Actions | -11 -10 -10 -8 --------- Run | Yrd Mat Sub Mat Total 1292 | 100 593 412 187 Wait 397 | . 374 11 12 Move 788 | 84 197 366 141 Hop . | . . . . Pick Up 16 | 2 7 6 1 Fast Attach 12 | 7 . . 5 Attach 10 | . . 5 5 Detach . | . . . . Swap 5 | 1 1 2 1 Drop 8 | . 2 6 . Fire 53 | 6 12 15 20 Melee . | . . . . Ram . | . . . . Kick 2 | . . . 2 Crush . | . . . . Escape Stasis . | . . . . Rewire . | . . . . Trap . | . . . . Miscellaneous 1 | . . 1 . Route ------- -11/Scrapyard -10/Materials -10/Subcaves (discovered 2 exits: *Mat / [*Rec]) -8/Materials (discovered 2 exits: Fac x2) History --------- Turn | Location | Event 4 | -11/Scrapyard | Discovered new exit (range 16) 140 | -11/Scrapyard | Entered Materials 303 | -10/Materials | Build established: Mutant 780 | -10/Materials | Discovered new exit (range 4) 796 | -10/Materials | Entered Subcaves 799 | -10/Subcaves | Learned Materials stockpile data 802 | -10/Subcaves | Learned 8 Materials zone layouts 886 | -10/Subcaves | Discovered new exit (range 9) 911 | -10/Subcaves | Core integrity fell below 50% 957 | -10/Subcaves | Lost 4 parts (1p1n1u1w) 1036 | -10/Subcaves | Visited 4L-MR0's lab 1314 | -10/Subcaves | Discovered new exit (range 14) 1396 | -10/Subcaves | A Subdweller sparked back to life 1396 | -10/Subcaves | A Subdweller sparked back to life 1400 | -10/Subcaves | Entered Materials 1400 | -8/Materials | Evolved 4 slots: Propulsion x2, Utility x2 1401 | -8/Materials | Identified exit to Factory 1619 | -8/Materials | Lost 3 parts (1n1u1w) 1624 | -8/Materials | Garrison activated, responded to threat 1662 | -8/Materials | Core integrity fell below 50% 1669 | -8/Materials | Core integrity fell below 20% 1697 | -8/Materials | Lost 6 parts (1p1n1u3w) 1722 | -8/Materials | Destroyed by G-47 Trooper with Particle Gun Last Messages --------------- 01642_ Destroyed Wheel. 01644_ Destroyed Welding Torch. 01644_ ALERT: Construction progress impeded, dispatching reinforcements to local area. 01646_ Destroyed Heat Sink. 01646_ G-47 Trooper destroyed. 01647_ Critical hit (Burn: +37). 01649_ K-01 Serf collects debris. 01650_ Aluminum Leg destroyed. 01654_ Flak Cannon destroyed. 01655_ Sub. Shrapnel Launcher destroyed. 01661_ Y-45 Defender destroyed. 01661_ S-10 Pest destroyed. 01665_ Critical hit (Burn: +37). 01666_ Nuclear Core destroyed. 01678_ Acquired Arm. Treads. 01698_ Acquired Assault Cannon. 01701_ G-47 Trooper knocked back. 01707_ G-47 Trooper destroyed. 01722_ Critical hit (Burn: +37). Map ----- +----------------------------------------------------+ | """ """ #???#???????????????????# ???????? | | """ """ #???#???????????????????# #???????? | | """ """ #???#??????????###+###### #???????? | | ####+#########??????????# #???????? | | ?# ??????????# #???????? | | ## ??????????# " """ #???????? | | ??????????# "G" """ #???????? | | ??????????# " " #???????? | | """ """??????????# #???????? | | """ """??????????# #???????? | | """ = """??????????# #???????? | | ????????# #???????? | | ######## ######### | | | | | | | | ####+######T##?########+### % | | #?###????# # %= | | #????????# # "########## | | #????????# s # % #????????? | | #???????## ! %gs # ! #?????#### | | #???????#; % g% # " "######## | | #????????# = # # "%% | | #????????# = # " """####### * | | #????????# ### #"! ] "###?????## # | | #????????# @#?# #########????????# # | | #########????????############ #????????????????# # | | ?????????????????????# """ # #????????????????# # | | ?????????????????????# """ # #????????????????# # | | ?????????????????????# """ # #????????????????# # | | ?????????????????????# # #????????????????# # | | ?????????????????????# # #????????????????# # | | ?????????????????????# # #####?????######## # | | ?????????????????????#+##+### ####### ## # | | ??????????????######## ## # | | ??????????????# + T | | ??????????????# """ # #### | | ??????????????# """ ######## ####### #??? | | ??????????????# """ #??????## ######?## ##??? | | ??????????????# #???????# # T??# #???? | | ??????????????# #???????# # ??# #???? | | ????????###########+########## + """ ??# #???? | | ######### # """ ??# #???? | | # """ ??# #???? | | # ??# ##### | | ############+############??# # | | #?????# #???????# # | | ###???# #???????# # | | """ """ #???# #???????####+#### | | """"" """"" #???# #???????# | +----------------------------------------------------+ Best States ------------- Heat Dissipation 31 Energy Generation 14 Energy Capacity 250 Matter Stores 300 Matter Capacity 300 Sight Range 16 Terrain Scan Density 10 Armor Coverage 950 Evasion (%) 55 Recoil Reduction 4 Item Schematics ----------------- None Robot Schematics ------------------ None Fabricated ------------ Nothing Alien Tech Used ----------------- None Achievements -------------- None Challenges ------------ None Game ------ Seed ActuatorNeutrinoExpander Manual? 0 Play Time 00:15:18 Cumulative 21.7 hours Start 2024.05.04 @ 19:12:56 End 2024.05.04 @ 19:25:19 Sessions 1 Manual Loads 0 Difficulty Rogue Special Mode None Game No. 36 Rogue 36 Adventurer 0 Explorer 0 Win Type - Total 0 Types 0/0/0/0/0/0/0/0/0 Lore% 31 Gallery% 29 Achievement% 25 Wizard Run 0 Options --------- Layout 0 ASCII 0 Keyboard 0 Movement Numpad Keybinds 0 Fullscreen 1 Font 18/SmallcapsGlow Map View 76x50 Zoom Use 0% Tactical HUD 1 Map Filters NONE Filters NONE Steam 1 RUN: a008a06c-c98d-42e9-b043-38b0d7639bdd